[Event "Titled Tuesday Blitz April 05 Late 2022"]
[White "Sarkar, Justin"]
[Black "Chernobay, Artem"]
[WhiteFideId "2010011"]
[BlackFideId "4167406"]
[WhiteElo "2038"]
[BlackElo "2473"]
[Result "0-1"]
[Round "03"]
[TimeControl "180+1"]
[Date "2022.04.06"]
[WhiteClock "0:00:02"]
[BlackClock "0:00:05"]

1. e4 {[%clk 0:03:00]}  c5 {[%clk 0:02:59]} 2. Nf3 {[%clk 0:02:59]}  d6 {[%clk 0:02:59]} 3. d4 {[%clk 0:02:58]}  cxd4 {[%clk 0:03:00]} 4. Nxd4 {[%clk 0:02:57]}  Nf6 {[%clk 0:03:00]} 5. Nc3 {[%clk 0:02:57]}  a6 {[%clk 0:03:00]} 6. Bg5 {[%clk 0:02:53]}  Nbd7 {[%clk 0:02:58]} 7. Bc4 {[%clk 0:02:51]}  Qb6 {[%clk 0:02:54]} 8. Qd2 {[%clk 0:02:43]}  Qxb2 {[%clk 0:02:44]} 9. Rb1 {[%clk 0:02:40]}  Qa3 {[%clk 0:02:44]} 10. O-O {[%clk 0:02:34]}  Qc5 {[%clk 0:02:26]} 11. Bb3 {[%clk 0:02:26]}  e6 {[%clk 0:01:46]} 12. Kh1 {[%clk 0:02:16]}  h6 {[%clk 0:01:30]} 13. Be3 {[%clk 0:02:08]}  Qh5 {[%clk 0:01:23]} 14. f3 {[%clk 0:01:54]}  b5 {[%clk 0:01:15]} 15. Bxe6 {[%clk 0:01:42]}  fxe6 {[%clk 0:01:14]} 16. Nxe6 {[%clk 0:01:41]}  Kf7 {[%clk 0:01:07]} 17. Nd8+ {[%clk 0:00:19]}  Kg8 {[%clk 0:01:02]} 18. a4 {[%clk 0:00:14]}  Qe8 {[%clk 0:00:54]} 19. Nc6 {[%clk 0:00:12]}  Nc5 {[%clk 0:00:47]} 20. axb5 {[%clk 0:00:08]}  axb5 {[%clk 0:00:46]} 21. Nd4 {[%clk 0:00:04]}  Ba6 {[%clk 0:00:40]} 22. Ncxb5 {[%clk 0:00:03]}  Qf7 {[%clk 0:00:31]} 23. c4 {[%clk 0:00:02]}  Qxc4 {[%clk 0:00:27]} 24. Nc7 {[%clk 0:00:02]}  Rc8 {[%clk 0:00:20]} 25. Rfc1 {[%clk 0:00:02]}  Qa4 {[%clk 0:00:15]} 26. Ra1 {[%clk 0:00:02]}  Nb3 {[%clk 0:00:13]} 27. Rxa4 {[%clk 0:00:01]}  Nxd2 {[%clk 0:00:13]} 28. Bxd2 {[%clk 0:00:01]}  Bb7 {[%clk 0:00:13]} 29. Rb4 {[%clk 0:00:01]}  Ba8 {[%clk 0:00:13]} 30. Rbb1 {[%clk 0:00:01]}  d5 {[%clk 0:00:12]} 31. Nxa8 {[%clk 0:00:01]}  Rxa8 {[%clk 0:00:11]} 32. e5 {[%clk 0:00:02]}  Nd7 {[%clk 0:00:12]} 33. f4 {[%clk 0:00:02]}  Kh7 {[%clk 0:00:11]} 34. Ne6 {[%clk 0:00:02]}  Be7 {[%clk 0:00:10]} 35. Nc7 {[%clk 0:00:03]}  Rac8 {[%clk 0:00:09]} 36. Nxd5 {[%clk 0:00:03]}  Rxc1+ {[%clk 0:00:09]} 37. Rxc1 {[%clk 0:00:03]}  Bc5 {[%clk 0:00:10]} 38. Nc7 {[%clk 0:00:02]}  Rb8 {[%clk 0:00:09]} 39. Ne6 {[%clk 0:00:02]}  Ba7 {[%clk 0:00:07]} 40. g3 {[%clk 0:00:02]}  Rb2 {[%clk 0:00:07]} 41. Rd1 {[%clk 0:00:02]}  Nb6 {[%clk 0:00:06]} 42. Bc3 {[%clk 0:00:02]}  Rc2 {[%clk 0:00:06]} 43. Bd4 {[%clk 0:00:03]}  Ra2 {[%clk 0:00:05]} 44. Ra1 {[%clk 0:00:02]}  Rxa1+ {[%clk 0:00:04]} 45. Bxa1 {[%clk 0:00:02]}  Nc4 {[%clk 0:00:05]} 46. Nd8 {[%clk 0:00:02]}  Bb6 {[%clk 0:00:05]} 0-1


[Site "https://www.chess.com"]

[Event "Titled Tuesday Blitz April 05 Late 2022"]
[White "Sebag, Marie"]
[Black "Abdyzhapar, Asylbek"]
[WhiteFideId "617822"]
[BlackFideId "13800337"]
[WhiteElo "2440"]
[BlackElo "2331"]
[Result "0-1"]
[Round "03"]
[TimeControl "180+1"]
[Date "2022.04.05"]
[WhiteClock "0:00:37"]
[BlackClock "0:00:10"]

1. e4 {[%clk 0:03:00]}  d6 {[%clk 0:02:58]} 2. d4 {[%clk 0:02:49]}  Nf6 {[%clk 0:02:57]} 3. Nc3 {[%clk 0:02:48]}  g6 {[%clk 0:02:56]} 4. Be3 {[%clk 0:02:46]}  Bg7 {[%clk 0:02:54]} 5. Bd3 {[%clk 0:02:44]}  Ng4 {[%clk 0:02:52]} 6. Nf3 {[%clk 0:02:42]}  Nxe3 {[%clk 0:02:51]} 7. fxe3 {[%clk 0:02:42]}  O-O {[%clk 0:02:52]} 8. O-O {[%clk 0:02:41]}  Nd7 {[%clk 0:02:51]} 9. Ne2 {[%clk 0:02:41]}  c5 {[%clk 0:02:50]} 10. c3 {[%clk 0:02:41]}  b6 {[%clk 0:02:51]} 11. Qe1 {[%clk 0:02:40]}  Bb7 {[%clk 0:02:45]} 12. Qh4 {[%clk 0:02:40]}  e6 {[%clk 0:02:44]} 13. Qh3 {[%clk 0:02:30]}  Nf6 {[%clk 0:02:41]} 14. Ng3 {[%clk 0:02:28]}  h5 {[%clk 0:02:29]} 15. Rae1 {[%clk 0:02:12]}  e5 {[%clk 0:02:24]} 16. d5 {[%clk 0:02:08]}  Bc8 {[%clk 0:02:21]} 17. Nf5 {[%clk 0:02:05]}  gxf5 {[%clk 0:02:18]} 18. Qh4 {[%clk 0:01:58]}  fxe4 {[%clk 0:02:09]} 19. Bxe4 {[%clk 0:01:58]}  Nxe4 {[%clk 0:02:07]} 20. Qxe4 {[%clk 0:01:58]}  f5 {[%clk 0:02:06]} 21. Qc2 {[%clk 0:01:58]}  e4 {[%clk 0:02:02]} 22. Nd2 {[%clk 0:01:56]}  b5 {[%clk 0:01:57]} 23. a4 {[%clk 0:01:52]}  a6 {[%clk 0:01:54]} 24. Rf2 {[%clk 0:01:38]}  Bd7 {[%clk 0:01:52]} 25. Nf1 {[%clk 0:01:36]}  Qg5 {[%clk 0:01:50]} 26. Ng3 {[%clk 0:01:25]}  Be5 {[%clk 0:01:41]} 27. Qd2 {[%clk 0:01:20]}  bxa4 {[%clk 0:01:34]} 28. Ne2 {[%clk 0:01:19]}  Rab8 {[%clk 0:01:30]} 29. Nf4 {[%clk 0:01:19]}  h4 {[%clk 0:01:30]} 30. Ref1 {[%clk 0:01:19]}  Rb3 {[%clk 0:01:10]} 31. Ne6 {[%clk 0:01:13]}  Bxe6 {[%clk 0:01:01]} 32. dxe6 {[%clk 0:01:13]}  Qe7 {[%clk 0:00:43]} 33. Qd5 {[%clk 0:01:07]}  Qb7 {[%clk 0:00:27]} 34. Qd1 {[%clk 0:00:56]}  Rxb2 {[%clk 0:00:15]} 35. Rxf5 {[%clk 0:00:56]}  Rxf5 {[%clk 0:00:12]} 36. Qg4+ {[%clk 0:00:56]}  Qg7 {[%clk 0:00:12]} 37. e7 {[%clk 0:00:38]}  Rxf1+ {[%clk 0:00:10]} 38. Kxf1 {[%clk 0:00:37]}  Qxg4 {[%clk 0:00:10]} 0-1


[Site "https://www.chess.com"]

[Event "Titled Tuesday Blitz April 05 Late 2022"]
[White "Sevian, Samuel"]
[Black "Koziorowicz, Michal"]
[WhiteFideId "2040506"]
[BlackFideId "21809194"]
[WhiteElo "2698"]
[BlackElo "2235"]
[Result "1-0"]
[Round "03"]
[TimeControl "180+1"]
[Date "2022.04.05"]
[WhiteClock "0:01:53"]
[BlackClock "0:00:40"]

1. f4 {[%clk 0:03:00]}  g6 {[%clk 0:02:51]} 2. Nf3 {[%clk 0:03:00]}  Bg7 {[%clk 0:02:52]} 3. e4 {[%clk 0:02:59]}  c5 {[%clk 0:02:52]} 4. Nc3 {[%clk 0:02:59]}  Nc6 {[%clk 0:02:52]} 5. Bc4 {[%clk 0:02:59]}  e6 {[%clk 0:02:53]} 6. O-O {[%clk 0:02:58]}  Nge7 {[%clk 0:02:53]} 7. e5 {[%clk 0:02:55]}  O-O {[%clk 0:02:48]} 8. d3 {[%clk 0:02:55]}  a6 {[%clk 0:02:46]} 9. a4 {[%clk 0:02:53]}  d5 {[%clk 0:02:44]} 10. exd6 {[%clk 0:02:53]}  Nf5 {[%clk 0:02:45]} 11. Ne4 {[%clk 0:02:52]}  Nxd6 {[%clk 0:02:43]} 12. Nxd6 {[%clk 0:02:53]}  Qxd6 {[%clk 0:02:42]} 13. c3 {[%clk 0:02:54]}  Rb8 {[%clk 0:02:41]} 14. a5 {[%clk 0:02:53]}  Rd8 {[%clk 0:02:36]} 15. Be3 {[%clk 0:02:53]}  b5 {[%clk 0:02:35]} 16. axb6 {[%clk 0:02:52]}  Rxb6 {[%clk 0:02:36]} 17. Qc2 {[%clk 0:02:53]}  Ne7 {[%clk 0:02:34]} 18. Qf2 {[%clk 0:02:52]}  Rc6 {[%clk 0:02:23]} 19. Ng5 {[%clk 0:02:51]}  Nf5 {[%clk 0:02:17]} 20. Ne4 {[%clk 0:02:51]}  Qb8 {[%clk 0:02:17]} 21. Bxc5 {[%clk 0:02:48]}  Bb7 {[%clk 0:02:08]} 22. d4 {[%clk 0:02:47]}  Rcc8 {[%clk 0:01:53]} 23. Rae1 {[%clk 0:02:44]}  Bxe4 {[%clk 0:01:48]} 24. Rxe4 {[%clk 0:02:45]}  Nd6 {[%clk 0:01:48]} 25. Bxd6 {[%clk 0:02:43]}  Rxd6 {[%clk 0:01:49]} 26. Bd3 {[%clk 0:02:41]}  Rb6 {[%clk 0:01:49]} 27. Re2 {[%clk 0:02:40]}  a5 {[%clk 0:01:48]} 28. h4 {[%clk 0:02:40]}  h5 {[%clk 0:01:48]} 29. g4 {[%clk 0:02:36]}  hxg4 {[%clk 0:01:47]} 30. h5 {[%clk 0:02:37]}  gxh5 {[%clk 0:01:44]} 31. Qh2 {[%clk 0:02:35]}  f5 {[%clk 0:01:39]} 32. Qxh5 {[%clk 0:02:35]}  Rxb2 {[%clk 0:01:13]} 33. Rxe6 {[%clk 0:02:34]}  Qb7 {[%clk 0:01:13]} 34. Re8+ {[%clk 0:02:33]}  Rxe8 {[%clk 0:01:08]} 35. Qxe8+ {[%clk 0:02:34]}  Bf8 {[%clk 0:01:08]} 36. Bc4+ {[%clk 0:01:54]}  Kh7 {[%clk 0:00:40]} 37. Qh5+ {[%clk 0:01:53]}  Kg7 {[%clk 0:00:40]} 38. Qg5+ {[%clk 0:01:53]}  Kh8 {[%clk 0:00:40]} 39. Qg8# {[%clk 0:01:53]} 1-0


[Site "https://www.chess.com"]

[Event "Titled Tuesday Blitz April 05 Late 2022"]
[White "Shapiro, David"]
[Black "Davtyan, David Arm."]
[WhiteFideId "24133523"]
[BlackFideId "13310046"]
[WhiteElo "2320"]
[BlackElo "2158"]
[Result "1-0"]
[Round "03"]
[TimeControl "180+1"]
[Date "2022.04.06"]
[WhiteClock "0:01:54"]
[BlackClock "0:02:32"]

1. d4 {[%clk 0:02:47]}  Nf6 {[%clk 0:02:57]} 2. Nc3 {[%clk 0:02:47]}  d5 {[%clk 0:02:54]} 3. Bf4 {[%clk 0:02:47]}  a6 {[%clk 0:02:51]} 4. e3 {[%clk 0:02:46]}  Bf5 {[%clk 0:02:48]} 5. f3 {[%clk 0:02:45]}  e6 {[%clk 0:02:48]} 6. g4 {[%clk 0:02:45]}  Bg6 {[%clk 0:02:48]} 7. h4 {[%clk 0:02:46]}  h5 {[%clk 0:02:48]} 8. g5 {[%clk 0:02:46]}  Nfd7 {[%clk 0:02:48]} 9. Bd3 {[%clk 0:02:47]}  Bxd3 {[%clk 0:02:46]} 10. Qxd3 {[%clk 0:02:48]}  g6 {[%clk 0:02:44]} 11. e4 {[%clk 0:02:47]}  c6 {[%clk 0:02:43]} 12. Nge2 {[%clk 0:02:44]}  Bg7 {[%clk 0:02:43]} 13. O-O-O {[%clk 0:02:40]}  b5 {[%clk 0:02:42]} 14. Ng3 {[%clk 0:02:37]}  Nb6 {[%clk 0:02:38]} 15. Rde1 {[%clk 0:02:29]}  N8d7 {[%clk 0:02:36]} 16. exd5 {[%clk 0:01:55]}  cxd5 {[%clk 0:02:34]} 17. Rxe6+ {[%clk 0:01:55]}  fxe6 {[%clk 0:02:33]} 18. Qxg6+ {[%clk 0:01:55]}  Kf8 {[%clk 0:02:33]} 19. Bd6+ {[%clk 0:01:53]}  Kg8 {[%clk 0:02:33]} 20. Qxe6+ {[%clk 0:01:53]}  Kh7 {[%clk 0:02:32]} 21. g6+ {[%clk 0:01:54]}  Kh6 {[%clk 0:02:32]} 22. Nf5# {[%clk 0:01:54]} 1-0


[Site "https://www.chess.com"]

[Event "Titled Tuesday Blitz April 05 Late 2022"]
[White "Svane, Frederik"]
[Black "Ezat, Mohamed"]
[WhiteFideId "12923044"]
[BlackFideId "10600906"]
[WhiteElo "2459"]
[BlackElo "2386"]
[Result "1-0"]
[Round "03"]
[TimeControl "180+1"]
[Date "2022.04.05"]
[WhiteClock "0:00:49"]
[BlackClock "0:01:19"]

1. e4 {[%clk 0:03:00]}  c6 {[%clk 0:02:55]} 2. Nf3 {[%clk 0:03:00]}  d5 {[%clk 0:02:55]} 3. exd5 {[%clk 0:03:01]}  cxd5 {[%clk 0:02:55]} 4. d4 {[%clk 0:03:02]}  Nc6 {[%clk 0:02:55]} 5. c3 {[%clk 0:03:02]}  Bg4 {[%clk 0:02:55]} 6. h3 {[%clk 0:03:03]}  Bh5 {[%clk 0:02:55]} 7. Qb3 {[%clk 0:03:03]}  Qd7 {[%clk 0:02:44]} 8. Ne5 {[%clk 0:03:03]}  Nxe5 {[%clk 0:02:43]} 9. dxe5 {[%clk 0:03:04]}  a6 {[%clk 0:02:43]} 10. c4 {[%clk 0:03:04]}  dxc4 {[%clk 0:02:39]} 11. Bxc4 {[%clk 0:03:05]}  e6 {[%clk 0:02:39]} 12. O-O {[%clk 0:03:04]}  Ne7 {[%clk 0:02:37]} 13. g4 {[%clk 0:03:05]}  Bg6 {[%clk 0:02:36]} 14. Rd1 {[%clk 0:03:05]}  Qc7 {[%clk 0:02:36]} 15. Be3 {[%clk 0:03:05]}  Nc6 {[%clk 0:02:35]} 16. Nd2 {[%clk 0:03:05]}  Na5 {[%clk 0:02:27]} 17. Qc3 {[%clk 0:03:03]}  Nxc4 {[%clk 0:02:16]} 18. Nxc4 {[%clk 0:03:03]}  Be7 {[%clk 0:02:15]} 19. Nd6+ {[%clk 0:02:16]}  Bxd6 {[%clk 0:02:15]} 20. exd6 {[%clk 0:02:17]}  Qxc3 {[%clk 0:02:07]} 21. d7+ {[%clk 0:02:17]}  Ke7 {[%clk 0:02:02]} 22. bxc3 {[%clk 0:02:18]}  Be4 {[%clk 0:02:00]} 23. Bc5+ {[%clk 0:02:15]}  Kf6 {[%clk 0:01:59]} 24. Bb6 {[%clk 0:02:15]}  Rhd8 {[%clk 0:01:59]} 25. Rd4 {[%clk 0:02:03]}  Bd5 {[%clk 0:01:55]} 26. c4 {[%clk 0:02:01]}  Bc6 {[%clk 0:01:55]} 27. Rad1 {[%clk 0:01:59]}  Ke7 {[%clk 0:01:52]} 28. Bc5+ {[%clk 0:02:00]}  Kf6 {[%clk 0:01:52]} 29. h4 {[%clk 0:01:45]}  b5 {[%clk 0:01:47]} 30. Rf4+ {[%clk 0:01:24]}  Kg6 {[%clk 0:01:47]} 31. h5+ {[%clk 0:01:07]}  Kh6 {[%clk 0:01:40]} 32. Rxf7 {[%clk 0:01:04]}  bxc4 {[%clk 0:01:37]} 33. Be3+ {[%clk 0:01:00]}  g5 {[%clk 0:01:36]} 34. Bd4 {[%clk 0:00:51]}  Rg8 {[%clk 0:01:30]} 35. Rf6+ {[%clk 0:00:50]}  Kg7 {[%clk 0:01:29]} 36. Rf5+ {[%clk 0:00:49]}  Kh6 {[%clk 0:01:23]} 37. Rf6+ {[%clk 0:00:49]}  Kg7 {[%clk 0:01:24]} 38. h6+ {[%clk 0:00:48]}  Kh8 {[%clk 0:01:19]} 39. Rf8+ {[%clk 0:00:49]} 1-0


[Site "https://www.chess.com"]

[Event "Titled Tuesday Blitz April 05 Late 2022"]
[White "Sydoryka, Vladyslav"]
[Black "Hoffmann, Asa"]
[WhiteFideId "14145928"]
[BlackFideId "2001470"]
[WhiteElo "2283"]
[BlackElo "2117"]
[Result "1-0"]
[Round "03"]
[TimeControl "180+1"]
[Date "2022.04.06"]
[WhiteClock "0:00:14"]
[BlackClock "0:00:09"]

1. c4 {[%clk 0:02:52]}  Nf6 {[%clk 0:02:59]} 2. g3 {[%clk 0:02:52]}  c6 {[%clk 0:02:56]} 3. Bg2 {[%clk 0:02:52]}  d6 {[%clk 0:02:56]} 4. Nf3 {[%clk 0:02:52]}  e5 {[%clk 0:02:54]} 5. O-O {[%clk 0:02:52]}  Be7 {[%clk 0:02:54]} 6. Nc3 {[%clk 0:02:52]}  Be6 {[%clk 0:02:53]} 7. d3 {[%clk 0:02:50]}  h6 {[%clk 0:02:53]} 8. Rb1 {[%clk 0:02:50]}  Qd7 {[%clk 0:02:53]} 9. Re1 {[%clk 0:02:50]}  O-O {[%clk 0:02:52]} 10. b4 {[%clk 0:02:49]}  Bh3 {[%clk 0:02:49]} 11. Bh1 {[%clk 0:02:49]}  Re8 {[%clk 0:02:49]} 12. b5 {[%clk 0:02:49]}  Bf8 {[%clk 0:02:47]} 13. bxc6 {[%clk 0:02:47]}  Nxc6 {[%clk 0:02:45]} 14. Qa4 {[%clk 0:02:26]}  Rac8 {[%clk 0:02:41]} 15. Nd5 {[%clk 0:02:17]}  Nh7 {[%clk 0:02:24]} 16. Ba3 {[%clk 0:01:48]}  b6 {[%clk 0:02:05]} 17. Nb4 {[%clk 0:01:39]}  Nxb4 {[%clk 0:01:57]} 18. Qxd7 {[%clk 0:01:36]}  Bxd7 {[%clk 0:01:55]} 19. Bxb4 {[%clk 0:01:37]}  Bc6 {[%clk 0:01:53]} 20. Nd2 {[%clk 0:01:34]}  Nf6 {[%clk 0:01:50]} 21. Bxc6 {[%clk 0:01:25]}  Rxc6 {[%clk 0:01:49]} 22. e4 {[%clk 0:01:25]}  Rec8 {[%clk 0:01:38]} 23. Nf1 {[%clk 0:01:23]}  a6 {[%clk 0:01:33]} 24. a4 {[%clk 0:01:21]}  b5 {[%clk 0:01:30]} 25. axb5 {[%clk 0:01:15]}  axb5 {[%clk 0:01:29]} 26. cxb5 {[%clk 0:01:16]}  Rb6 {[%clk 0:01:26]} 27. Ba5 {[%clk 0:01:15]}  Rb7 {[%clk 0:01:26]} 28. Ne3 {[%clk 0:00:55]}  Ra8 {[%clk 0:01:17]} 29. Nc4 {[%clk 0:00:54]}  Nd7 {[%clk 0:01:08]} 30. Red1 {[%clk 0:00:23]}  Nc5 {[%clk 0:01:06]} 31. Kf1 {[%clk 0:00:23]}  g6 {[%clk 0:00:50]} 32. f3 {[%clk 0:00:21]}  f5 {[%clk 0:00:50]} 33. exf5 {[%clk 0:00:20]}  gxf5 {[%clk 0:00:49]} 34. d4 {[%clk 0:00:21]}  Ne6 {[%clk 0:00:42]} 35. dxe5 {[%clk 0:00:19]}  dxe5 {[%clk 0:00:42]} 36. Rd5 {[%clk 0:00:17]}  Nd4 {[%clk 0:00:35]} 37. Rxe5 {[%clk 0:00:14]}  Nxf3 {[%clk 0:00:34]} 38. Rxf5 {[%clk 0:00:13]}  Nd4 {[%clk 0:00:25]} 39. Rd5 {[%clk 0:00:11]}  Bg7 {[%clk 0:00:23]} 40. Bc3 {[%clk 0:00:10]}  Rf8+ {[%clk 0:00:16]} 41. Kg2 {[%clk 0:00:09]}  Nf5 {[%clk 0:00:15]} 42. Bxg7 {[%clk 0:00:08]}  Kxg7 {[%clk 0:00:15]} 43. Rf1 {[%clk 0:00:07]}  Ne7 {[%clk 0:00:12]} 44. Rxf8 {[%clk 0:00:06]}  Kxf8 {[%clk 0:00:12]} 45. Rd2 {[%clk 0:00:05]}  Nf5 {[%clk 0:00:10]} 46. Rf2 {[%clk 0:00:04]}  Rxb5 {[%clk 0:00:10]} 47. Nd6 {[%clk 0:00:04]}  Rd5 {[%clk 0:00:09]} 48. Rxf5+ {[%clk 0:00:03]}  Rxf5 {[%clk 0:00:09]} 49. Nxf5 {[%clk 0:00:04]}  h5 {[%clk 0:00:09]} 50. Kh3 {[%clk 0:00:05]}  Kf7 {[%clk 0:00:09]} 51. Kh4 {[%clk 0:00:05]}  Kg6 {[%clk 0:00:09]} 52. Ne7+ {[%clk 0:00:05]}  Kf7 {[%clk 0:00:09]} 53. Nd5 {[%clk 0:00:06]}  Kg6 {[%clk 0:00:09]} 54. Nf4+ {[%clk 0:00:07]}  Kh6 {[%clk 0:00:08]} 55. Nxh5 {[%clk 0:00:07]}  Kh7 {[%clk 0:00:08]} 56. Nf4 {[%clk 0:00:08]}  Kh6 {[%clk 0:00:08]} 57. g4 {[%clk 0:00:09]}  Kg7 {[%clk 0:00:08]} 58. Kg5 {[%clk 0:00:09]}  Kh7 {[%clk 0:00:08]} 59. h4 {[%clk 0:00:10]}  Kg7 {[%clk 0:00:08]} 60. h5 {[%clk 0:00:11]}  Kh7 {[%clk 0:00:08]} 61. h6 {[%clk 0:00:11]}  Kg8 {[%clk 0:00:08]} 62. Kg6 {[%clk 0:00:12]}  Kh8 {[%clk 0:00:08]} 63. Ne6 {[%clk 0:00:11]}  Kg8 {[%clk 0:00:08]} 64. Nd8 {[%clk 0:00:11]}  Kh8 {[%clk 0:00:08]} 65. Nf7+ {[%clk 0:00:12]}  Kg8 {[%clk 0:00:08]} 66. h7+ {[%clk 0:00:13]}  Kf8 {[%clk 0:00:08]} 67. h8=Q+ {[%clk 0:00:14]}  Ke7 {[%clk 0:00:09]} 68. Qd8+ {[%clk 0:00:14]} 1-0


[Site "https://www.chess.com"]

[Event "Titled Tuesday Blitz April 05 Late 2022"]
[White "Tristan, Leonardo"]
[Black "Mikhalsky, Vladimir"]
[WhiteFideId "113816"]
[BlackFideId "14144352"]
[WhiteElo "2404"]
[BlackElo "2301"]
[Result "1-0"]
[Round "03"]
[TimeControl "180+1"]
[Date "2022.04.06"]
[WhiteClock "0:01:08"]
[BlackClock "0:00:06"]

1. d4 {[%clk 0:03:00]}  Nf6 {[%clk 0:02:59]} 2. Nf3 {[%clk 0:03:01]}  g6 {[%clk 0:02:58]} 3. Bf4 {[%clk 0:03:01]}  Bg7 {[%clk 0:02:59]} 4. e3 {[%clk 0:03:02]}  O-O {[%clk 0:02:59]} 5. Be2 {[%clk 0:03:02]}  d6 {[%clk 0:03:00]} 6. O-O {[%clk 0:03:02]}  b6 {[%clk 0:03:00]} 7. h3 {[%clk 0:03:02]}  Bb7 {[%clk 0:03:00]} 8. Bh2 {[%clk 0:03:03]}  Nfd7 {[%clk 0:02:55]} 9. a4 {[%clk 0:02:58]}  a6 {[%clk 0:02:52]} 10. Nbd2 {[%clk 0:02:53]}  e5 {[%clk 0:02:49]} 11. c3 {[%clk 0:02:51]}  e4 {[%clk 0:02:46]} 12. Ne1 {[%clk 0:02:50]}  Re8 {[%clk 0:02:43]} 13. Qb3 {[%clk 0:02:48]}  Nc6 {[%clk 0:02:37]} 14. Nc2 {[%clk 0:02:46]}  Nf6 {[%clk 0:02:28]} 15. a5 {[%clk 0:02:41]}  b5 {[%clk 0:02:07]} 16. c4 {[%clk 0:02:42]}  Na7 {[%clk 0:02:03]} 17. cxb5 {[%clk 0:02:39]}  Nxb5 {[%clk 0:02:03]} 18. Nb4 {[%clk 0:02:23]}  c5 {[%clk 0:01:55]} 19. Nc2 {[%clk 0:01:43]}  Bd5 {[%clk 0:01:54]} 20. Bc4 {[%clk 0:01:43]}  Bxc4 {[%clk 0:01:54]} 21. Nxc4 {[%clk 0:01:43]}  d5 {[%clk 0:01:52]} 22. Nb6 {[%clk 0:01:41]}  c4 {[%clk 0:01:51]} 23. Qa4 {[%clk 0:01:39]}  Ra7 {[%clk 0:01:46]} 24. Nb4 {[%clk 0:01:40]}  Re6 {[%clk 0:01:20]} 25. Nxa6 {[%clk 0:01:23]}  Nxd4 {[%clk 0:01:05]} 26. Nc5 {[%clk 0:01:11]}  Rxb6 {[%clk 0:01:03]} 27. axb6 {[%clk 0:01:11]}  Rxa4 {[%clk 0:01:00]} 28. b7 {[%clk 0:01:11]}  Ne2+ {[%clk 0:00:38]} 29. Kh1 {[%clk 0:01:11]}  Rxa1 {[%clk 0:00:17]} 30. Rxa1 {[%clk 0:01:12]}  c3 {[%clk 0:00:06]} 31. bxc3 {[%clk 0:01:08]} 1-0


[Site "https://www.chess.com"]

[Event "Titled Tuesday Blitz April 05 Late 2022"]
[White "VengoDelFuturo"]
[Black "P., Komal Kishore"]
[BlackFideId "5016703"]
[WhiteElo "2350"]
[BlackElo "2078"]
[Result "1-0"]
[Round "03"]
[TimeControl "180+1"]
[Date "2022.04.06"]
[WhiteClock "0:01:06"]
[BlackClock "0:01:26"]

1. e4 {[%clk 0:03:00]}  c6 {[%clk 0:02:59]} 2. c4 {[%clk 0:02:59]}  d5 {[%clk 0:03:00]} 3. exd5 {[%clk 0:02:59]}  cxd5 {[%clk 0:03:00]} 4. cxd5 {[%clk 0:03:00]}  Qxd5 {[%clk 0:02:59]} 5. Nc3 {[%clk 0:02:58]}  Qd8 {[%clk 0:02:58]} 6. d4 {[%clk 0:02:59]}  e6 {[%clk 0:02:57]} 7. Nf3 {[%clk 0:02:57]}  Nf6 {[%clk 0:02:57]} 8. Bd3 {[%clk 0:02:57]}  Be7 {[%clk 0:02:56]} 9. O-O {[%clk 0:02:57]}  O-O {[%clk 0:02:55]} 10. Re1 {[%clk 0:02:57]}  a6 {[%clk 0:02:52]} 11. a3 {[%clk 0:02:56]}  b5 {[%clk 0:02:51]} 12. Ne5 {[%clk 0:02:57]}  Bb7 {[%clk 0:02:48]} 13. Re3 {[%clk 0:02:54]}  Nbd7 {[%clk 0:02:46]} 14. Rh3 {[%clk 0:02:42]}  Re8 {[%clk 0:02:44]} 15. Bxh7+ {[%clk 0:02:35]}  Nxh7 {[%clk 0:02:27]} 16. Qh5 {[%clk 0:02:34]}  Ndf8 {[%clk 0:02:15]} 17. Qxf7+ {[%clk 0:02:33]}  Kh8 {[%clk 0:02:14]} 18. Ng6+ {[%clk 0:01:22]}  Nxg6 {[%clk 0:02:05]} 19. Qxg6 {[%clk 0:01:22]}  Bh4 {[%clk 0:01:27]} 20. g3 {[%clk 0:01:14]}  Qxd4 {[%clk 0:01:26]} 21. Rxh4 {[%clk 0:01:06]} 1-0


[Site "https://www.chess.com"]